[Event "Indian Blitz Championship 2023"]
[Site "Nashik"]
[Date "2024.03.07"]
[Round "3.4"]
[White "Ravi, Teja S."]
[Black "Pimpalkhare Vedant"]
[Result "1-0"]
[ECO "A96"]
[WhiteElo "2437"]
[BlackElo "2254"]
[Annotator "TA"]
[PlyCount "74"]
[EventDate "2024.03.07"]
[EventType "blitz"]
[EventCountry "IND"]
[SourceTitle "playchess.com"]
[Source "ChessBase"]
[SourceQuality "1"]
[TimeControl "180+2"]

{[%evp 13,74,47,64,63,64,48,121,117,143,58,62,47,124,128,147,130,159,165,211,205,312,316,312,19,16,17,17,14,43,0,181,181,324,338,484,477,487,479,481,483,487,479,554,550,528,512,656,645,685,681,685,657,721,708,670,662,822,821,1437,1371,5143,5143,1235]} 1. d4 {[%emt 0:00:02]} e6 {[%emt 0:00:01]} 2. Nf3 {[%emt 0:00:01]} f5 {[%emt 0:00:02]} 3. g3 {[%emt 0:00:03]} Nf6 {[%emt 0:00:01]} 4. Bg2 {[%emt 0:00:01]} Be7 {[%emt 0:00:13]} 5. O-O {[%emt 0:00:02]} O-O {[%emt 0:00:01]} 6. c4 {[%emt 0:00:02]} d6 {[%emt 0:00:04]} 7. Nc3 {[%emt 0:00:01]} Ne4 {[%emt 0:00:20]} 8. Nxe4 {[%emt 0:00:18]} fxe4 {[%emt 0:00:01]} 9. Nd2 {[%emt 0:00:01]} e3 {[%emt 0:00:29]} 10. fxe3 $16 {[%emt 0:00:03] White is better.} e5 {[%emt 0:00:02]} 11. Nb3 {[%emt 0:00:58]} ({White should play} 11. Rxf8+ $16 Kxf8 12. Ne4) 11... Nd7 {[%emt 0:00:15]} 12. Bd2 {[%emt 0:00:08]} Bf6 {[%emt 0:00:05]} (12... Rxf1+ $14 13. Qxf1 c6) 13. Bc3 {[%emt 0:00:03]} Qe7 {[%emt 0:00:02] [#]} 14. Qd3 $1 {[%emt 0:00:04]} c6 {[%emt 0:00:05]} 15. Nd2 {[%emt 0:00:02][%cal Bb3d2,Bd2e4,Be4d6,Bd6f7,Bf7e5][%mdl 32] White is much more active.} Re8 {[%emt 0:00:22]} (15... Nb6 $142 16. Ne4 Be6) 16. Rf2 $18 {[%emt 0:00:05]} Bg5 {[%emt 0:00:19]} (16... Nb6 $142 17. Ne4 Be6 18. Nxf6+ gxf6) 17. Ne4 {[%emt 0:00:24]} Bh6 {[%emt 0:00:01]} 18. dxe5 $2 {[%emt 0:00:05] [#]} (18. Bb4 $18) 18... Nxe5 $11 {[%emt 0:00:08]} 19. Bxe5 {[%emt 0:00:16]} (19. Qxd6 $2 Bxe3 20. Bb4 Qf7 $19 (20... Bxf2+ $2 21. Nxf2 Qxd6 22. Bxd6 $19)) 19... Qxe5 {[%emt 0:00:16]} 20. Kh1 $1 {[%emt 0:00:31][%cal Oa1f1]} (20. Qxd6 $2 {perishes.} Bxe3 21. Qxe5 Rxe5 $19 (21... Bxf2+ $2 22. Nxf2 Rxe5 23. Bf3 $19)) (20. Nxd6 Rd8 21. Bd5+ Be6 $17 (21... cxd5 22. Nf7 $15)) 20... Bg4 {[%emt 0:00:22]} ({Reject} 20... Bf5 21. Nf6+ Qxf6 22. Rxf5 $14) (20... Re7 {simplifies} 21. Qxd6 Qxd6 22. Nxd6 Bxe3 23. Rff1 Bc5) 21. Nxd6 {[%emt 0:00:07]} (21. Raf1 $5) 21... Red8 {[%emt 0:00:10] White now steadily converts the win.} (21... Bxe3 $11 {and Black has nothing to worry.} 22. Nxe8 Bxf2) 22. Nf7 $1 $18 {[%emt 0:00:02]} Rxd3 {[%emt 0:00:23]} (22... Qe7 {keeps fighting.} 23. Nxh6+ (23. Nxd8 Rxd8 24. Qb3 Bxe3 $18) 23... gxh6) 23. Nxe5 {[%emt 0:00:01]} Bxe3 {[%emt 0:00:02]} (23... Bxe2 {might work better.} 24. Rxe2 Rxe3) 24. Nxd3 {[%emt 0:00:01] White is clearly winning.} Bxf2 {[%emt 0:00:01]} 25. Nxf2 {[%emt 0:00:01]} Bxe2 {[%emt 0:00:01]} 26. b3 {[%emt 0:00:03]} Rd8 {[%emt 0:00:01]} 27. Re1 {[%emt 0:00:01]} Rd2 {[%emt 0:00:01]} 28. Ne4 {[%emt 0:00:04]} Rc2 {[%emt 0:00:03]} 29. Nc5 {[%emt 0:00:04]} Rxa2 {[%emt 0:00:02]} 30. Nxb7 {[%emt 0:00:01]} g5 {[%emt 0:00:04]} 31. Bxc6 {[%emt 0:00:02]} Rb2 {[%emt 0:00:01]} 32. Nc5 {[%emt 0:00:02]} a5 {[%emt 0:00:01]} 33. Bd5+ {[%emt 0:00:02]} Kg7 {[%emt 0:00:01]} 34. Na4 {[%emt 0:00:02]} Rc2 {[%emt 0:00:01]} 35. Be4 {[%emt 0:00:01]} Ra2 {[%emt 0:00:01]} 36. Nc3 {[%emt 0:00:30][%csl LRa2,LRe2][%cal Oc3e2]} Rb2 {[%emt 0:00:01]} 37. Nxe2 {[%emt 0:00:00]} Kf6 {[%emt 0:00:13] Weighted Error Value: White=0.27 (precise) /Black=0.59.  Loses game:     	---       	Black=1      Missed win:     	White=1     	---        Mistake:       	White=1     	Black=6      Inaccurate:     	White=1     	Black=1      OK:         	White=9     	Black=3      Best:        	White=3     	---        Strong:       	White=3     	---} 1-0

[Event "Indian Blitz Championship 2023"]
[Site "Nashik"]
[Date "2024.03.07"]
[Round "3.5"]
[White "Raja Rithvik R"]
[Black "Abhishek, Kelkar"]
[Result "1-0"]
[ECO "D10"]
[WhiteElo "2532"]
[BlackElo "2182"]
[Annotator "TA"]
[PlyCount "74"]
[EventDate "2024.03.07"]
[EventType "blitz"]
[EventCountry "IND"]
[SourceTitle "playchess.com"]
[Source "ChessBase"]
[SourceQuality "1"]
[TimeControl "180+2"]

{[%evp 21,74,24,19,0,100,104,107,95,388,380,403,395,381,388,403,402,399,401,383,381,29966,29961,29964,29965,29965,29966,29966,29964,5477,392,380,378,493,547,556,558,574,583,591,544,577,579,733,706,1398,1309,1531,1358,5222,5189,29979,29980,29980,29981,29967]} 1. d4 {[%emt 0:00:01]} d5 {[%emt 0:00:08]} 2. c4 {[%emt 0:00:01]} c6 {[%emt 0:00:01]} 3. cxd5 {[%emt 0:00:03]} cxd5 {[%emt 0:00:03]} 4. Nc3 {[%emt 0:00:01]} Nc6 {[%emt 0:00:13]} 5. Nf3 {[%emt 0:00:02]} Nf6 {[%emt 0:00:03]} 6. Bf4 {[%emt 0:00:01]} a6 {[%emt 0:00:17]} 7. Rc1 {[%emt 0:00:02]} e6 {[%emt 0:00:03]} 8. e3 {[%emt 0:00:07][%cal Be2e3,Be3e4][%mdl 32]} Bd6 {[%emt 0:00:05]} 9. Bxd6 {[%emt 0:00:06]} Qxd6 {[%emt 0:00:02]} 10. Bd3 {[%emt 0:00:05]} O-O {[%emt 0:00:03]} 11. O-O {[%emt 0:00:02]} b5 {[%emt 0:00:07]} 12. e4 {[%emt 0:00:20]} e5 {[%emt 0:01:34] [#]} (12... dxe4 $11 {keeps the balance.} 13. Nxe4 Nxe4 14. Bxe4 Bb7) 13. Nxd5 $1 $16 {[%emt 0:01:51][%cal Oc1c6] Threatens to win with Rxc6!} Nxd4 {[%emt 0:00:11]} 14. Nxd4 {[%emt 0:00:12] White is better.} exd4 $2 {[%emt 0:00:03][%mdl 8192] [#]} (14... Nxd5 $16 {was called for.} 15. exd5 exd4) 15. Rc6 $3 $18 {[%emt 0:00:01][%mdl 512]} Qd8 {[%emt 0:00:10]} 16. Nxf6+ {[%emt 0:00:04]} gxf6 {[%emt 0:00:01]} 17. Qh5 {[%emt 0:00:05]} Be6 {[%emt 0:00:09]} 18. e5 {[%emt 0:00:15][%csl Gd3][%cal Rh5h7]} f5 {[%emt 0:00:01]} 19. Bxf5 {[%emt 0:00:01]} (19. Rd6 Qe7 20. Bxf5 Bxf5 $18) 19... Bxf5 {[%emt 0:00:02]} 20. Qxf5 {[%emt 0:00:01] Rh6 would kill now.} Qd5 $2 {[%emt 0:00:13]} (20... Qe7 $18 21. Rh6 f6 22. exf6 Qb7 23. Qg4+ Kh8 24. Qxd4 Rad8) 21. Rh6 {[%emt 0:00:03][%csl Gh6][%cal Rf5h7]} Rfe8 {[%emt 0:00:05]} 22. Qxh7+ {[%emt 0:00:03]} Kf8 {[%emt 0:00:01][%cal Bg8f8,Bf8e7,Be7d7,Bd7c7,Bc7b7,Bb7b6][%mdl 32]} 23. Qh8+ {[%emt 0:00:07]} Ke7 {[%emt 0:00:01]} 24. Qf6+ {[%emt 0:00:01]} Kd7 {[%emt 0:00:00]} 25. Qd6+ $2 {[%emt 0:00:06]} (25. Qf5+ Qe6 26. Rxe6 fxe6 27. Qe4) 25... Qxd6 {[%emt 0:00:01]} 26. Rxd6+ {[%emt 0:00:01][%mdl 4096] Endgame. KRR-KRR} (26. exd6 Re2 27. Rh4 (27. Rc1 Rae8 $11) 27... d3 $11) 26... Kc7 {[%emt 0:00:02]} 27. Rc1+ {[%emt 0:00:01]} (27. Rxd4 Rxe5 28. Rc1+ Kb7 29. Rd7+ Kb6 30. Rxf7 Re2 31. Rf6+ Kb7) 27... Kb7 {[%emt 0:00:00]} 28. f4 {[%emt 0:00:02]} Rad8 {[%emt 0:00:02]} 29. Rxd8 {[%emt 0:00:05]} Rxd8 {[%emt 0:00:01] KR-KR} 30. Kf2 {[%emt 0:00:01]} Kb6 {[%emt 0:00:00]} 31. h4 {[%emt 0:00:02][%cal Bh2h4,Bh4h5,Bh5h6][%mdl 32]} d3 {[%emt 0:00:01]} 32. Ke3 {[%emt 0:00:01]} Rg8 {[%emt 0:00:02]} 33. Kxd3 {[%emt 0:00:14]} Rxg2 {[%emt 0:00:02]} 34. Rh1 {[%emt 0:00:00]} Rxb2 {[%emt 0:00:02]} 35. h5 {[%emt 0:00:00] White wants to mate with h6.} Rxa2 {[%emt 0:00:04]} 36. h6 {[%emt 0:00:00]} Ra3+ {[%emt 0:00:06]} 37. Ke4 {[%emt 0:00:00]} Ra4+ {[%emt 0:00:01] Black did not feel at home in the position after the opening.   Weighted Error Value: White=0.34/Black=0.93.  Loses game:     	---       	Black=1      Mistake:       	---       	Black=2      Inaccurate:     	---       	Black=2      OK:         	White=9     	Black=5      Best:        	White=1     	Black=1      Strong:       	White=1     	---        Brilliant:      	White=1     	---} 1-0

[Event "Indian Blitz Championship 2023"]
[Site "Nashik"]
[Date "2024.03.07"]
[Round "3.6"]
[White "Kushagra Mohan"]
[Black "Vaibhav Jayant Raut"]
[Result "1-0"]
[ECO "B23"]
[WhiteElo "2351"]
[BlackElo "2071"]
[Annotator "TA"]
[PlyCount "93"]
[EventDate "2024.03.07"]
[EventType "blitz"]
[EventCountry "IND"]
[SourceTitle "playchess.com"]
[Source "ChessBase"]
[SourceQuality "1"]
[TimeControl "180+2"]

{[%evp 9,93,12,25,33,39,25,29,15,26,16,28,23,24,18,128,64,47,65,73,61,65,0,27,0,95,89,104,104,175,98,189,185,227,225,467,476,5143,966,5123,5114,1909,2854,2037,2072,1629,1506,1489,1406,2047,1825,2296,1258,5721,5779,5235,1641,5325,0,1158,1079,2121,0,0,0,5500,741,4810,4806,5310,5418,5231,4712,5275,5148,1685,945,5710,5619,29969,29970,29977,29978,29986,29983,29997,29998]} 1. e4 {[%emt 0:00:01]} c5 {[%emt 0:00:01]} 2. Nc3 {[%emt 0:00:01]} Nc6 {[%emt 0:00:01]} 3. Bb5 {[%emt 0:00:02]} Nd4 {[%emt 0:00:06]} 4. Nf3 {[%emt 0:00:01]} Nxb5 {[%emt 0:00:02]} 5. Nxb5 {[%emt 0:00:01]} d5 {[%emt 0:00:00]} 6. exd5 {[%emt 0:00:06]} a6 {[%emt 0:00:01]} 7. Nc3 {[%emt 0:00:03]} Nf6 {[%emt 0:00:01]} 8. O-O {[%emt 0:00:02] White has an edge.} Nxd5 {[%emt 0:00:02]} 9. Ne4 {[%emt 0:00:01]} e6 {[%emt 0:00:28]} 10. d4 {[%emt 0:00:00]} cxd4 {[%emt 0:00:01]} 11. Qxd4 {[%emt 0:00:01]} Nf6 {[%emt 0:00:17]} (11... Qb6 $11 {keeps the balance.}) 12. Nxf6+ {[%emt 0:00:03]} (12. Qxd8+ $16 Kxd8 13. Neg5) 12... gxf6 $14 {[%emt 0:00:18]} 13. Qh4 {[%emt 0:00:21]} Bd7 {[%emt 0:00:09]} 14. Be3 {[%emt 0:00:03]} Be7 {[%emt 0:00:18]} 15. Rad1 {[%emt 0:00:01] White is much more active.} Qc7 {[%emt 0:00:03]} 16. c3 {[%emt 0:00:35]} Rg8 {[%emt 0:00:09]} (16... h5 $11) 17. Qxh7 $16 {[%emt 0:00:06]} O-O-O {[%emt 0:00:16]} 18. Qxf7 {[%emt 0:00:07]} Qc6 {[%emt 0:00:13] [#]} (18... Rde8 $16) 19. Kh1 {[%emt 0:00:18]} (19. Qxe7 Rxg2+ 20. Kh1 Qxf3 21. Qc5+ Bc6 22. Rxd8+ Kxd8 23. Qf8+ Kd7 24. Qf7+ Kd6 25. Qf8+ Ke5 26. Bd4+ Ke4 27. Qxf6 Rg8+ 28. Qxf3+ Kxf3 29. h4 Ke2+ 30. Kh2 Kxf1 31. Bf6 Rg2+ (31... Kxf2 $2 32. h5 $19) 32. Kh3 e5 (32... Rxf2 $2 33. Bd8 $19) 33. h5 Bd7+ (33... Rxf2 $2 34. Bxe5 Rf5 35. Bb8 $19) 34. Kh4 Rg4+ (34... Rxf2 $2 35. Bxe5 Rg2 36. h6 $19) 35. Kh3 Kxf2 36. Be7 Rd4+ 37. Kh2 Rd3 38. Bh4+ Kf1 (38... Ke2 {leads to mate.} 39. Kg2 Bc6+ 40. Kh2 Kf1 41. Bg3 Bd7 42. h6 Rd2+ 43. Bf2 Kxf2 44. h7 Kf3+ 45. Kg1 Kg3 46. Kf1 Bg4 47. h8=Q Rd1#) 39. Bg3 Rd2+) (19. Nh4 $1 $18 Bd6 20. g3 (20. Qxf6 Rdf8 $18)) 19... Bd6 {[%emt 0:00:07]} (19... Rde8 $16 {was necessary.}) 20. Qxf6 $18 {[%emt 0:00:32]} Rdf8 {[%emt 0:00:10]} 21. Qd4 {[%emt 0:00:03]} Rxg2 $2 {[%emt 0:00:19]} (21... Bc7 22. Ng5 Rf5) 22. Qxd6 {[%emt 0:00:07]} Qxf3 {[%emt 0:00:02]} (22... Rgg8 $142 23. Qxd7+ Qxd7 24. Rxd7 Kxd7 25. Rd1+ Kc7) 23. Qxd7+ {[%emt 0:00:01]} Kb8 {[%emt 0:00:06]} 24. Qd6+ {[%emt 0:00:01]} (24. Qxe6 $2 Rgg8#) 24... Kc8 {[%emt 0:00:07]} 25. Qxe6+ {[%emt 0:00:10]} Kb8 {[%emt 0:00:05]} 26. Qd6+ {[%emt 0:00:04]} Kc8 {[%emt 0:00:01] [#]} 27. Qxf8+ $3 {[%emt 0:00:04]} Qxf8 {[%emt 0:00:02]} 28. Kxg2 {[%emt 0:00:01] Bb6 is the strong threat.} Qg8+ {[%emt 0:00:07]} 29. Kf3 {[%emt 0:00:04]} Qf7+ {[%emt 0:00:03]} 30. Ke2 {[%emt 0:00:03]} Qxa2 {[%emt 0:00:02]} 31. Rd2 {[%emt 0:00:01]} Qc4+ {[%emt 0:00:02]} 32. Rd3 {[%emt 0:00:02]} Qb3 {[%emt 0:00:04]} 33. Rd2 {[%emt 0:00:06]} Qc4+ $1 {[%emt 0:00:02]} 34. Ke1 {[%emt 0:00:02] Rg1 would now be deadly.} Qe4 {[%emt 0:00:01]} 35. Ke2 $2 {[%emt 0:00:13]} (35. Rg1 $18 a5 36. Rg8+ Kc7 37. Rg5 (37. Rg7+ Kc6 $18)) 35... Qc4+ $11 {[%emt 0:00:03]} 36. Rd3 {[%emt 0:00:01]} ({Not} 36. Ke1 Qg8 37. h4 Qh7 $18) 36... Qb3 {[%emt 0:00:06]} 37. Bc1 {[%emt 0:00:01] Strongly threatening Rfd1.} Qc2+ {[%emt 0:00:03]} 38. Ke3 {[%emt 0:00:00]} Qb3 {[%emt 0:00:03]} 39. Rfd1 {[%emt 0:00:02]} Qe6+ {[%emt 0:00:03]} 40. Kf3 {[%emt 0:00:02] Threatening mate with Rd8+.} Qh3+ {[%emt 0:00:09]} 41. Ke2 {[%emt 0:00:01]} Qg4+ {[%emt 0:00:05]} 42. Kd2 {[%emt 0:00:02]} Qf4+ {[%emt 0:00:02]} 43. Ke1 {[%emt 0:00:08]} Qxh2 {[%emt 0:00:04]} 44. Be3 {[%emt 0:00:04] White mates.} Qh1+ {[%emt 0:00:02]} 45. Kd2 {[%emt 0:00:01]} Qf3 {[%emt 0:00:02]} 46. Kc1 {[%emt 0:00:02]} Qe2 {[%emt 0:00:03]} 47. Bb6 {[%emt 0:00:04] Weighted Error Value: White=0.19 (very precise) /Black=0.55.  Mistake:       	White=2     	Black=6      Inaccurate:     	White=3     	Black=3      OK:         	White=6     	Black=6      Best:        	White=4     	Black=3} 1-0

[Event "Indian Blitz Championship 2023"]
[Site "Nashik"]
[Date "2024.03.07"]
[Round "3.7"]
[White "Ojas Kulkarni"]
[Black "Sengupta, Deep"]
[Result "0-1"]
[ECO "E12"]
[WhiteElo "2259"]
[BlackElo "2500"]
[Annotator "TA"]
[PlyCount "94"]
[EventDate "2024.03.07"]
[EventType "blitz"]
[EventCountry "IND"]
[SourceTitle "playchess.com"]
[Source "ChessBase"]
[SourceQuality "1"]
[TimeControl "180+2"]

{[%evp 19,94,0,0,-11,4,-29,0,0,0,-9,9,7,7,4,35,22,82,55,78,78,75,75,73,52,49,47,60,13,11,8,8,8,6,0,3,0,0,-8,0,0,0,0,0,-8,-8,-8,-8,-8,0,-10,-5,-5,-5,-23,-3,-45,0,0,10,0,0,0,0,0,0,0,0,0,0,-527,-527,-648,-385,-12802,-6528,-12839,-7767]} 1. d4 {[%emt 0:00:01]} Nf6 {[%emt 0:00:01]} 2. c4 {[%emt 0:00:02]} b6 {[%emt 0:00:01]} 3. Nf3 {[%emt 0:00:16]} Bb7 {[%emt 0:00:01]} 4. Nc3 {[%emt 0:00:04]} e6 {[%emt 0:00:09]} 5. a3 {[%emt 0:00:04]} d5 {[%emt 0:00:02]} 6. cxd5 {[%emt 0:00:04]} Nxd5 {[%emt 0:00:03]} 7. e3 {[%emt 0:00:07]} Be7 {[%emt 0:00:01]} 8. Bb5+ {[%emt 0:00:01]} c6 {[%emt 0:00:03][%cal Bc7c6,Bc6c5][%mdl 32]} 9. Bd3 {[%emt 0:00:02]} c5 {[%emt 0:00:13]} 10. O-O {[%emt 0:00:37]} O-O {[%emt 0:00:05]} 11. Re1 {[%emt 0:00:06]} Nc6 {[%emt 0:00:34]} 12. Qc2 {[%emt 0:00:34]} h6 {[%emt 0:00:02]} 13. dxc5 {[%emt 0:00:12] The position is equal.} Nxc3 {[%emt 0:00:29]} 14. Qxc3 {[%emt 0:00:06]} bxc5 {[%emt 0:00:02]} 15. Qc2 {[%emt 0:00:12]} Rb8 {[%emt 0:00:15]} 16. Bd2 {[%emt 0:00:08]} Ba8 {[%emt 0:00:34]} 17. Bc3 {[%emt 0:00:04]} Qd5 {[%emt 0:00:07]} (17... Bd6 $11 {keeps the balance.}) 18. Red1 {[%emt 0:00:06] [#] Black must now prevent Bh7+.} Qh5 {[%emt 0:00:02]} 19. Be2 {[%emt 0:00:02][%cal Of3e5]} Rfd8 {[%emt 0:00:35]} 20. Rxd8+ {[%emt 0:00:20]} Rxd8 {[%emt 0:00:00]} 21. Rd1 {[%emt 0:00:02]} Rxd1+ {[%emt 0:00:02]} 22. Qxd1 {[%emt 0:00:02]} Qd5 {[%emt 0:00:01]} 23. Qxd5 {[%emt 0:00:11]} (23. Qa4 $14) 23... exd5 $11 {[%emt 0:00:01]} 24. Ne5 {[%emt 0:00:04]} Bd6 {[%emt 0:00:15]} 25. Nxc6 {[%emt 0:00:01]} Bxc6 {[%emt 0:00:01][%mdl 4096] Endgame. KBB-KBB} 26. Bf3 {[%emt 0:00:03]} f6 {[%emt 0:00:03]} 27. Kf1 {[%emt 0:00:02]} Kf7 {[%emt 0:00:01]} 28. g3 {[%emt 0:00:05]} Ke6 {[%emt 0:00:02]} 29. Ke2 {[%emt 0:00:04]} Be5 {[%emt 0:00:07]} 30. Bg4+ {[%emt 0:00:09]} Kd6 {[%emt 0:00:01]} 31. Bf3 {[%emt 0:00:06]} Bxc3 {[%emt 0:00:02]} 32. bxc3 {[%emt 0:00:01] KB-KB} Bb5+ {[%emt 0:00:01]} 33. Kd2 {[%emt 0:00:02]} Bc4 {[%emt 0:00:01]} 34. h4 {[%emt 0:00:04]} g5 {[%emt 0:00:01]} 35. Bg4 {[%emt 0:00:03]} Ke5 {[%emt 0:00:03]} 36. Bf3 {[%emt 0:00:04]} a5 {[%emt 0:00:00]} 37. Bg2 {[%emt 0:00:01]} Bb3 {[%emt 0:00:03]} 38. f4+ {[%emt 0:00:02]} gxf4 {[%emt 0:00:03]} 39. gxf4+ {[%emt 0:00:01]} Kd6 {[%emt 0:00:01]} 40. Bh3 {[%emt 0:00:02]} Bc4 {[%emt 0:00:01]} 41. Bf5 {[%emt 0:00:01]} Kc6 {[%emt 0:00:00]} 42. Bc2 {[%emt 0:00:02]} Kb5 {[%emt 0:00:03]} 43. Bd1 {[%emt 0:00:03]} Ba2 {[%emt 0:00:02]} 44. Bf3 $2 {[%emt 0:00:04][%mdl 8192] [#]} (44. Kc1 $11 {and White is okay.}) 44... Ka4 $19 {[%emt 0:00:01]} 45. Bg4 {[%emt 0:00:02]} Kxa3 {[%emt 0:00:02]} 46. Be6 $2 {[%emt 0:00:01]} (46. Kc2) 46... Kb2 {[%emt 0:00:01]} 47. e4 {[%emt 0:00:02]} dxe4 {[%emt 0:00:02] Weighted Error Value: White=0.65/Black=0.10 (very precise) .  Loses game:     	White=1     	---        Mistake:       	White=2     	Black=1      Inaccurate:     	White=4     	Black=3      OK:         	White=11    	Black=9      Best:        	---       	Black=2} 0-1

[Event "Indian Blitz Championship 2023"]
[Site "Nashik"]
[Date "2024.03.07"]
[Round "3.8"]
[White "Nitin, S.."]
[Black "Dushyant Sharma"]
[Result "1-0"]
[ECO "A14"]
[WhiteElo "2338"]
[BlackElo "2331"]
[Annotator "TA"]
[PlyCount "81"]
[EventDate "2024.03.07"]
[EventType "blitz"]
[EventCountry "IND"]
[SourceTitle "playchess.com"]
[Source "ChessBase"]
[SourceQuality "1"]
[TimeControl "180+2"]

{[%evp 18,81,-6,-29,-7,-19,0,0,16,-8,-15,-27,-28,-37,-29,-30,-16,-56,-46,-60,-48,-55,-9,-68,43,33,222,209,355,342,398,391,411,410,493,463,551,557,635,638,807,683,739,725,771,795,774,776,1070,1062,1066,1066,1460,1054,29988,29989,29989,29990,29990,29991,29991,29992,29992,29989,29993,29993]} 1. Nf3 {[%emt 0:00:03]} d5 {[%emt 0:00:01]} 2. g3 {[%emt 0:00:01]} e6 {[%emt 0:00:01]} 3. Bg2 {[%emt 0:00:01]} Nf6 {[%emt 0:00:01]} 4. O-O {[%emt 0:00:03]} Be7 {[%emt 0:00:01]} 5. c4 {[%emt 0:00:05]} O-O {[%emt 0:00:02]} 6. b3 {[%emt 0:00:08]} b6 {[%emt 0:00:01]} 7. Bb2 {[%emt 0:00:03]} Bb7 {[%emt 0:00:01]} 8. d3 {[%emt 0:00:07]} c5 {[%emt 0:00:02]} 9. Nbd2 {[%emt 0:00:03]} Nc6 {[%emt 0:00:10]} 10. a3 {[%emt 0:00:05]} Rc8 {[%emt 0:00:08]} 11. Rc1 {[%emt 0:00:03]} a6 {[%emt 0:00:02]} (11... d4 $5) 12. cxd5 {[%emt 0:00:40]} Nxd5 {[%emt 0:00:20] Die Stellung ist ausgeglichen.} 13. Ne4 {[%emt 0:00:02]} Nf6 {[%emt 0:00:21]} 14. Nfd2 {[%emt 0:00:05]} Nxe4 {[%emt 0:00:10]} 15. Nxe4 {[%emt 0:00:02]} Qd7 {[%emt 0:00:03]} 16. Qd2 {[%emt 0:00:05]} Nd4 {[%emt 0:00:03]} 17. Qd1 {[%emt 0:00:17]} f5 {[%emt 0:00:17]} 18. Nd2 {[%emt 0:00:10]} Bxg2 {[%emt 0:00:03]} 19. Kxg2 {[%emt 0:00:01]} e5 {[%emt 0:00:22]} (19... b5 $15) 20. Nc4 {[%emt 0:00:16]} ({Vorzuziehen ist} 20. b4 $11) 20... Bf6 {[%emt 0:00:44]} (20... b5 $15 21. Nxe5 Qd5+ 22. Nf3 Nxb3 (22... Qxb3 23. Bxd4 Qxd1 24. Rfxd1 $11)) 21. e3 $14 {[%emt 0:00:19]} (21. Nxb6 $2 {zu gefräßig.} Qc6+ 22. e4 Qxb6 $19) 21... Qd5+ {[%emt 0:00:37] Danach kann Schwarz die Partie nicht mehr halten.} ({Besser ist} 21... Ne6 $14) 22. f3 $18 {[%emt 0:00:04]} Ne6 {[%emt 0:00:08]} (22... b5 $142) 23. Nxb6 {[%emt 0:00:03]} Qb7 {[%emt 0:00:04]} 24. Nxc8 {[%emt 0:00:02]} Rxc8 {[%emt 0:00:02] [#]} 25. b4 $1 {[%emt 0:00:06]} Rf8 {[%emt 0:00:05]} (25... Rd8 26. Qb3) 26. Qb3 {[%emt 0:00:06]} Qe7 {[%emt 0:00:01]} 27. bxc5 {[%emt 0:00:05]} Kh8 {[%emt 0:00:01]} 28. c6 {[%emt 0:00:03]} f4 {[%emt 0:00:02]} 29. e4 {[%emt 0:00:05]} fxg3 {[%emt 0:00:02]} 30. hxg3 {[%emt 0:00:02]} Bg5 {[%emt 0:00:02]} 31. Bxe5 {[%emt 0:00:19]} Bxc1 {[%emt 0:00:01]} 32. Rxc1 {[%emt 0:00:02]} Qg5 {[%emt 0:00:05] [#]} 33. f4 $1 {[%emt 0:00:12][%cal Bf3f4,Bf4f5][%mdl 32]} Qg4 {[%emt 0:00:01]} (33... Qh5 34. Qd1) 34. Qd1 {[%emt 0:00:15]} Qg6 {[%emt 0:00:03]} 35. c7 {[%emt 0:00:01]} h5 {[%emt 0:00:01][%cal Bh7h5,Bh5h4][%mdl 32]} 36. c8=Q {[%emt 0:00:04] Weiß setzt Matt.} Rxc8 {[%emt 0:00:01]} 37. Rxc8+ {[%emt 0:00:01]} Kh7 {[%emt 0:00:01]} 38. f5 {[%emt 0:00:01]} Qg5 {[%emt 0:00:04]} 39. fxe6 {[%emt 0:00:04]} Qxe5 {[%emt 0:00:01]} 40. Qf3 {[%emt 0:00:03]} h4 {[%emt 0:00:02]} 41. Qf5+ {[%emt 0:00:01] Gewichteter Fehlerwert: Weiß=0.22 (präzise) /Schwarz=0.87.  Verlustzug:     	---       	Schwarz=1     Fehler:       	Weiß=1     	Schwarz=3     Ungenau:       	Weiß=1     	---        OK:         	Weiß=6     	Schwarz=2     Bester:       	Weiß=3     	Schwarz=1} 1-0